[Event "*** Titled Tuesday Blitz"]
[Site "Chess.com"]
[Date "2020.04.28"]
[Round "7"]
[White "abhidabhi"]
[Black "Andreikka"]
[Result "1-0"]
[WhiteElo "2774"]
[BlackElo "2959"]
[TimeControl "180+1"]
[EndTime "11:18:46 PDT"]
[Termination "abhidabhi won on time"]

1. e4 {[%clk 0:03:00.9]} 1... e5 {[%clk 0:02:59.3]} 2. Nf3 {[%clk 0:03:00.8]}
2... Nc6 {[%clk 0:02:58.8]} 3. Bb5 {[%clk 0:02:59.6]} 3... a6 {[%clk 0:02:53.6]}
4. Ba4 {[%clk 0:02:59.6]} 4... Nf6 {[%clk 0:02:52.7]} 5. O-O {[%clk 0:02:58.9]}
5... Be7 {[%clk 0:02:51.4]} 6. Re1 {[%clk 0:02:58.8]} 6... b5 {[%clk 0:02:51.6]}
7. Bb3 {[%clk 0:02:59]} 7... O-O {[%clk 0:02:51.5]} 8. d4 {[%clk 0:02:57.6]}
8... Nxd4 {[%clk 0:02:50.3]} 9. Nxd4 {[%clk 0:02:57.1]} 9... exd4 {[%clk
0:02:50.7]} 10. e5 {[%clk 0:02:56.7]} 10... Ne8 {[%clk 0:02:50.7]} 11. c3 {[%clk
0:02:57]} 11... c5 {[%clk 0:02:50.1]} 12. cxd4 {[%clk 0:02:56.5]} 12... c4
{[%clk 0:02:50.3]} 13. Bc2 {[%clk 0:02:56.9]} 13... d5 {[%clk 0:02:50.5]} 14.
Qf3 {[%clk 0:02:49]} 14... Nc7 {[%clk 0:02:47.9]} 15. Be3 {[%clk 0:02:46.5]}
15... b4 {[%clk 0:02:04.4]} 16. Nd2 {[%clk 0:02:44]} 16... a5 {[%clk 0:02:01.3]}
17. b3 {[%clk 0:02:28.5]} 17... Be6 {[%clk 0:01:46.9]} 18. Nf1 {[%clk
0:02:26.1]} 18... f5 {[%clk 0:01:46.6]} 19. Ng3 {[%clk 0:02:17.9]} 19... g6
{[%clk 0:01:31.7]} 20. Ne2 {[%clk 0:02:06.6]} 20... g5 {[%clk 0:01:31.4]} 21. h4
{[%clk 0:01:54]} 21... g4 {[%clk 0:01:00.7]} 22. Qf4 {[%clk 0:01:47]} 22... Qe8
{[%clk 0:00:58.1]} 23. Qh6 {[%clk 0:01:43.9]} 23... Qg6 {[%clk 0:00:58.1]} 24.
g3 {[%clk 0:01:28.2]} 24... a4 {[%clk 0:00:51.6]} 25. Qxg6+ {[%clk 0:01:23.6]}
25... hxg6 {[%clk 0:00:51.2]} 26. Nf4 {[%clk 0:01:23]} 26... Kf7 {[%clk
0:00:51.5]} 27. bxa4 {[%clk 0:01:11.6]} 27... Rfb8 {[%clk 0:00:44.7]} 28. Kg2
{[%clk 0:00:58.8]} 28... Bd7 {[%clk 0:00:32.6]} 29. h5 {[%clk 0:00:50]} 29...
gxh5 {[%clk 0:00:32]} 30. Nxh5 {[%clk 0:00:41.3]} 30... b3 {[%clk 0:00:20.3]}
31. axb3 {[%clk 0:00:40.9]} 31... cxb3 {[%clk 0:00:21.2]} 32. Bd3 {[%clk
0:00:41.1]} 32... b2 {[%clk 0:00:21.5]} 33. Rab1 {[%clk 0:00:40.9]} 33... Rxa4
{[%clk 0:00:21.1]} 34. Nf4 {[%clk 0:00:40.1]} 34... Bg5 {[%clk 0:00:15.8]} 35.
Re2 {[%clk 0:00:22.7]} 35... Rab4 {[%clk 0:00:13.3]} 36. Rc2 {[%clk 0:00:21.9]}
36... Ne6 {[%clk 0:00:08.5]} 37. Nxe6 {[%clk 0:00:19.9]} 37... Bxe3 {[%clk
0:00:07.5]} 38. Nc5 {[%clk 0:00:20]} 38... Bxd4 {[%clk 0:00:05.4]} 39. Nxd7
{[%clk 0:00:20.3]} 39... Ke6 {[%clk 0:00:06]} 40. Nxb8 {[%clk 0:00:16.9]} 40...
Rxb8 {[%clk 0:00:05.9]} 41. Rc6+ {[%clk 0:00:16.7]} 41... Kxe5 {[%clk
0:00:04.8]} 42. Re1+ {[%clk 0:00:15.9]} 1-0

[Event "*** Titled Tuesday Blitz"]
[Site "Chess.com"]
[Date "2020.04.28"]
[Round "7"]
[White "Uzbektiger1963"]
[Black "Angry_Twin"]
[Result "0-1"]
[WhiteElo "2541"]
[BlackElo "2798"]
[TimeControl "180+1"]
[EndTime "11:18:46 PDT"]
[Termination "Angry_Twin won by resignation"]

1. c4 {[%clk 0:03:00.9]} 1... e5 {[%clk 0:02:59.7]} 2. Nc3 {[%clk 0:03:01.1]}
2... Nf6 {[%clk 0:03:00.1]} 3. Nf3 {[%clk 0:03:01.4]} 3... Nc6 {[%clk 0:03:00]}
4. e4 {[%clk 0:03:01.9]} 4... Bb4 {[%clk 0:02:58.3]} 5. d3 {[%clk 0:03:02.1]}
5... d6 {[%clk 0:02:58.1]} 6. a3 {[%clk 0:03:02.5]} 6... Bc5 {[%clk 0:02:58.2]}
7. b4 {[%clk 0:03:02.6]} 7... Bb6 {[%clk 0:02:58.4]} 8. Na4 {[%clk 0:03:02.8]}
8... Bd4 {[%clk 0:02:56.3]} 9. Rb1 {[%clk 0:03:02.4]} 9... O-O {[%clk
0:02:54.8]} 10. Be2 {[%clk 0:03:00.4]} 10... a6 {[%clk 0:02:37.8]} 11. Bd2
{[%clk 0:02:59.7]} 11... Ba7 {[%clk 0:02:36.2]} 12. O-O {[%clk 0:02:55.5]} 12...
Nd4 {[%clk 0:02:36.2]} 13. Nxd4 {[%clk 0:02:41.6]} 13... Bxd4 {[%clk 0:02:37.1]}
14. Be3 {[%clk 0:02:39.1]} 14... b5 {[%clk 0:02:34.5]} 15. Bxd4 {[%clk
0:02:37.2]} 15... exd4 {[%clk 0:02:34]} 16. Nb2 {[%clk 0:02:37.8]} 16... Re8
{[%clk 0:02:29.3]} 17. Qc2 {[%clk 0:02:32.9]} 17... Bb7 {[%clk 0:02:23.8]} 18.
Rbc1 {[%clk 0:02:20.7]} 18... c6 {[%clk 0:02:20.3]} 19. f4 {[%clk 0:02:14.8]}
19... Rc8 {[%clk 0:02:17.3]} 20. Bf3 {[%clk 0:02:14.4]} 20... Nd7 {[%clk
0:01:54.9]} 21. Qf2 {[%clk 0:02:04.2]} 21... c5 {[%clk 0:01:53.6]} 22. Bg4
{[%clk 0:01:43.7]} 22... Rc7 {[%clk 0:01:53.3]} 23. a4 {[%clk 0:01:34]} 23...
bxa4 {[%clk 0:01:43.1]} 24. bxc5 {[%clk 0:01:25]} 24... Nxc5 {[%clk 0:01:35.7]}
25. Ra1 {[%clk 0:01:23.2]} 25... Bc6 {[%clk 0:01:34.7]} 26. Bd1 {[%clk
0:01:15.2]} 26... Qf6 {[%clk 0:01:15.4]} 27. Ra3 {[%clk 0:01:07.6]} 27... Rb8
{[%clk 0:01:08.7]} 28. Nxa4 {[%clk 0:01:07.4]} 28... Bxa4 {[%clk 0:01:02.3]} 29.
Bxa4 {[%clk 0:01:08.3]} 29... Rcb7 {[%clk 0:01:02.7]} 30. Bc6 {[%clk 0:00:47.3]}
30... Rb2 {[%clk 0:01:02.4]} 31. Qg3 {[%clk 0:00:47.5]} 31... Rd2 {[%clk
0:00:50.9]} 32. Bd5 {[%clk 0:00:44.9]} 32... Rbb2 {[%clk 0:00:50]} 33. e5 {[%clk
0:00:45]} 33... Qe7 {[%clk 0:00:41.5]} 34. f5 {[%clk 0:00:45.2]} 34... Qxe5
{[%clk 0:00:32.8]} 35. Qxe5 {[%clk 0:00:30.7]} 35... dxe5 {[%clk 0:00:33.7]} 36.
Ra5 {[%clk 0:00:30.7]} 36... e4 {[%clk 0:00:33.9]} 37. Rf4 {[%clk 0:00:04.3]}
37... Rd1+ {[%clk 0:00:34]} 38. Rf1 {[%clk 0:00:03.3]} 38... Rdd2 {[%clk
0:00:34.9]} 39. Rf4 {[%clk 0:00:03.3]} 39... Nxd3 {[%clk 0:00:21.5]} 40. Rxa6
{[%clk 0:00:02.9]} 40... h5 {[%clk 0:00:21.5]} 41. Ra8+ {[%clk 0:00:01.9]} 41...
Kh7 {[%clk 0:00:21.9]} 42. Bxf7 {[%clk 0:00:02.8]} 42... Nxf4 {[%clk 0:00:20.7]}
43. Bg8+ {[%clk 0:00:02.4]} 43... Kh6 {[%clk 0:00:20.5]} 44. h4 {[%clk 0:00:02]}
44... Rxg2+ {[%clk 0:00:18.4]} 0-1

[Event "*** Titled Tuesday Blitz"]
[Site "Chess.com"]
[Date "2020.04.28"]
[Round "7"]
[White "PIwan"]
[Black "VincentKeymer"]
[Result "1/2-1/2"]
[WhiteElo "2557"]
[BlackElo "2720"]
[TimeControl "180+1"]
[EndTime "11:18:46 PDT"]
[Termination "Game drawn by repetition"]

1. c4 {[%clk 0:03:00.9]} 1... e6 {[%clk 0:02:59.7]} 2. Nc3 {[%clk 0:03:01]} 2...
d5 {[%clk 0:02:54.9]} 3. d4 {[%clk 0:03:00.9]} 3... Nf6 {[%clk 0:02:54.1]} 4.
cxd5 {[%clk 0:03:00.7]} 4... Nxd5 {[%clk 0:02:54.2]} 5. e4 {[%clk 0:02:59.5]}
5... Nxc3 {[%clk 0:02:54.1]} 6. bxc3 {[%clk 0:03:00.4]} 6... c5 {[%clk
0:02:54.7]} 7. a3 {[%clk 0:03:00.7]} 7... g6 {[%clk 0:02:53]} 8. Nf3 {[%clk
0:02:54]} 8... Bg7 {[%clk 0:02:52.9]} 9. Bg5 {[%clk 0:02:54]} 9... Qa5 {[%clk
0:02:49.8]} 10. Qd2 {[%clk 0:02:54.3]} 10... Nc6 {[%clk 0:02:38.6]} 11. e5
{[%clk 0:02:41.8]} 11... O-O {[%clk 0:02:30.5]} 12. Be2 {[%clk 0:02:26.4]} 12...
cxd4 {[%clk 0:02:23.7]} 13. cxd4 {[%clk 0:02:27.3]} 13... Qxd2+ {[%clk
0:02:23.6]} 14. Kxd2 {[%clk 0:02:22.4]} 14... Bd7 {[%clk 0:02:22.3]} 15. Rab1
{[%clk 0:02:16.7]} 15... Na5 {[%clk 0:02:13.1]} 16. Rhc1 {[%clk 0:02:01.6]}
16... Rfc8 {[%clk 0:02:06.4]} 17. Kd3 {[%clk 0:01:31.1]} 17... b5 {[%clk
0:01:17.4]} 18. Nd2 {[%clk 0:01:25.4]} 18... Rxc1 {[%clk 0:01:03.1]} 19. Rxc1
{[%clk 0:01:24.5]} 19... Rc8 {[%clk 0:01:01.2]} 20. Rxc8+ {[%clk 0:01:22]} 20...
Bxc8 {[%clk 0:01:02.1]} 21. Kc3 {[%clk 0:01:21.8]} 21... a6 {[%clk 0:00:50.2]}
22. Ne4 {[%clk 0:01:14.9]} 22... Bf8 {[%clk 0:00:46.2]} 23. Nd6 {[%clk
0:01:07.7]} 23... Bd7 {[%clk 0:00:22.4]} 24. Bd8 {[%clk 0:01:00.9]} 24... Nc6
{[%clk 0:00:20.1]} 25. Bb6 {[%clk 0:00:50.8]} 25... Bxd6 {[%clk 0:00:16.7]} 26.
exd6 {[%clk 0:00:50.4]} 26... Kf8 {[%clk 0:00:17.3]} 27. Bc7 {[%clk 0:00:42.5]}
27... Ke8 {[%clk 0:00:17.1]} 28. a4 {[%clk 0:00:34.2]} 28... bxa4 {[%clk
0:00:14]} 29. Bxa6 {[%clk 0:00:35.1]} 29... e5 {[%clk 0:00:11.3]} 30. dxe5
{[%clk 0:00:22.5]} 30... Nxe5 {[%clk 0:00:12.2]} 31. Kb4 {[%clk 0:00:21]} 31...
f6 {[%clk 0:00:10.3]} 32. h3 {[%clk 0:00:20.3]} 32... Bc6 {[%clk 0:00:08.1]} 33.
f4 {[%clk 0:00:17.3]} 33... Nd7 {[%clk 0:00:06.8]} 34. g4 {[%clk 0:00:16.7]}
34... f5 {[%clk 0:00:03.7]} 35. g5 {[%clk 0:00:15.8]} 35... Kf7 {[%clk
0:00:02.8]} 36. Bc4+ {[%clk 0:00:15.7]} 36... Kf8 {[%clk 0:00:03.1]} 37. h4
{[%clk 0:00:15.3]} 37... Ke8 {[%clk 0:00:02.8]} 38. Bg8 {[%clk 0:00:14.7]} 38...
Nf8 {[%clk 0:00:03.3]} 39. Kc5 {[%clk 0:00:13.5]} 39... Kd7 {[%clk 0:00:03.6]}
40. Kb4 {[%clk 0:00:11.2]} 40... Ke8 {[%clk 0:00:02]} 41. Kc5 {[%clk 0:00:10.7]}
41... Kd7 {[%clk 0:00:02.6]} 42. Kb4 {[%clk 0:00:11]} 42... Ke8 {[%clk 0:00:03]}
1/2-1/2

[Event "*** Titled Tuesday Blitz"]
[Site "Chess.com"]
[Date "2020.04.28"]
[Round "7"]
[White "elohunter1999"]
[Black "GMartin_Petrov"]
[Result "1/2-1/2"]
[WhiteElo "2511"]
[BlackElo "2664"]
[TimeControl "180+1"]
[EndTime "11:18:48 PDT"]
[Termination "Game drawn by repetition"]

1. e4 {[%clk 0:03:00.9]} 1... c6 {[%clk 0:02:59.5]} 2. Nc3 {[%clk 0:02:57.7]}
2... d5 {[%clk 0:02:59.6]} 3. Nf3 {[%clk 0:02:58]} 3... g6 {[%clk 0:02:58.4]} 4.
h3 {[%clk 0:02:51.7]} 4... Bg7 {[%clk 0:02:56.8]} 5. d4 {[%clk 0:02:51.4]} 5...
dxe4 {[%clk 0:02:55.8]} 6. Nxe4 {[%clk 0:02:50.7]} 6... Nd7 {[%clk 0:02:55.2]}
7. Bc4 {[%clk 0:02:47.3]} 7... Ngf6 {[%clk 0:02:53.6]} 8. Nxf6+ {[%clk
0:02:47.3]} 8... Nxf6 {[%clk 0:02:53.2]} 9. O-O {[%clk 0:02:48.2]} 9... O-O
{[%clk 0:02:52.6]} 10. a4 {[%clk 0:02:45.3]} 10... a5 {[%clk 0:02:51.2]} 11. Re1
{[%clk 0:02:44.4]} 11... Nd5 {[%clk 0:02:50.6]} 12. c3 {[%clk 0:02:38]} 12... h6
{[%clk 0:02:45.6]} 13. Ne5 {[%clk 0:02:31.9]} 13... Bf5 {[%clk 0:02:38.8]} 14.
Qf3 {[%clk 0:02:30.8]} 14... Qc8 {[%clk 0:01:56.4]} 15. Bxd5 {[%clk 0:02:14.1]}
15... cxd5 {[%clk 0:01:56]} 16. Qxd5 {[%clk 0:02:14.7]} 16... Be6 {[%clk
0:01:53.9]} 17. Qf3 {[%clk 0:02:14.1]} 17... Rd8 {[%clk 0:01:51.7]} 18. Bf4
{[%clk 0:02:12.5]} 18... Bd5 {[%clk 0:01:49.7]} 19. Qg3 {[%clk 0:02:10.8]} 19...
Qf5 {[%clk 0:01:47.8]} 20. Ng4 {[%clk 0:02:06.6]} 20... g5 {[%clk 0:01:34]} 21.
Bd2 {[%clk 0:02:06]} 21... e6 {[%clk 0:01:28.9]} 22. Ne3 {[%clk 0:02:05.4]}
22... Qd3 {[%clk 0:01:22.5]} 23. Nxd5 {[%clk 0:02:05.1]} 23... Qxg3 {[%clk
0:01:13.9]} 24. fxg3 {[%clk 0:02:03.8]} 24... Rxd5 {[%clk 0:01:12]} 25. g4
{[%clk 0:02:01.6]} 25... e5 {[%clk 0:01:08.8]} 26. Be3 {[%clk 0:01:42.9]} 26...
exd4 {[%clk 0:01:07.5]} 27. Rad1 {[%clk 0:01:40.9]} 27... Re8 {[%clk 0:01:03.7]}
28. cxd4 {[%clk 0:01:25.9]} 28... Bxd4 {[%clk 0:00:51.5]} 29. Kf1 {[%clk
0:01:17.1]} 29... Red8 {[%clk 0:00:49.9]} 30. Bxd4 {[%clk 0:01:17]} 30... Rxd4
{[%clk 0:00:50.5]} 31. Re8+ {[%clk 0:01:17.5]} 31... Rxe8 {[%clk 0:00:47.1]} 32.
Rxd4 {[%clk 0:01:17.9]} 32... Re3 {[%clk 0:00:36.8]} 33. Rd5 {[%clk 0:01:01.6]}
33... Rb3 {[%clk 0:00:35.9]} 34. Rxa5 {[%clk 0:00:58.1]} 34... Rxb2 {[%clk
0:00:35.9]} 35. g3 {[%clk 0:00:26.9]} 35... Kg7 {[%clk 0:00:31]} 36. h4 {[%clk
0:00:26.6]} 36... gxh4 {[%clk 0:00:27.7]} 37. gxh4 {[%clk 0:00:27.3]} 37... Rb4
{[%clk 0:00:27.6]} 38. g5 {[%clk 0:00:25.7]} 38... h5 {[%clk 0:00:27.7]} 39. Rb5
{[%clk 0:00:23.9]} 39... Rxa4 {[%clk 0:00:26.9]} 40. Rxb7 {[%clk 0:00:23.6]}
40... Rxh4 {[%clk 0:00:26.9]} 41. Rb5 {[%clk 0:00:19.5]} 41... Rg4 {[%clk
0:00:25.4]} 42. Kf2 {[%clk 0:00:19.7]} 42... Kg6 {[%clk 0:00:25.4]} 43. Rb8
{[%clk 0:00:20.3]} 43... Kxg5 {[%clk 0:00:23]} 44. Rf8 {[%clk 0:00:19.9]} 44...
f5 {[%clk 0:00:21.7]} 45. Kf3 {[%clk 0:00:19.7]} 45... Rf4+ {[%clk 0:00:18.5]}
46. Kg3 {[%clk 0:00:19.4]} 46... h4+ {[%clk 0:00:18.8]} 47. Kh3 {[%clk
0:00:19.7]} 47... Rf3+ {[%clk 0:00:19.1]} 48. Kg2 {[%clk 0:00:20]} 48... Ra3
{[%clk 0:00:18.9]} 49. Rg8+ {[%clk 0:00:18.8]} 49... Kf4 {[%clk 0:00:18.9]} 50.
Rb8 {[%clk 0:00:18.9]} 50... Ra2+ {[%clk 0:00:17.7]} 51. Kh3 {[%clk 0:00:19]}
51... Ra3+ {[%clk 0:00:17.9]} 52. Kg2 {[%clk 0:00:17.5]} 52... Kg4 {[%clk
0:00:17.1]} 53. Rg8+ {[%clk 0:00:16.9]} 53... Kf4 {[%clk 0:00:17]} 54. Rb8
{[%clk 0:00:17.5]} 1/2-1/2

[Event "*** Titled Tuesday Blitz"]
[Site "Chess.com"]
[Date "2020.04.28"]
[Round "7"]
[White "RubensCezila"]
[Black "murtas73"]
[Result "1/2-1/2"]
[WhiteElo "2469"]
[BlackElo "2593"]
[TimeControl "180+1"]
[EndTime "11:18:49 PDT"]
[Termination "Game drawn by repetition"]

1. c4 {[%clk 0:03:00.9]} 1... e6 {[%clk 0:02:57.1]} 2. e3 {[%clk 0:03:00.8]}
2... Nf6 {[%clk 0:02:55.4]} 3. b3 {[%clk 0:03:00.1]} 3... b6 {[%clk 0:02:54.7]}
4. Bb2 {[%clk 0:03:00]} 4... Bb7 {[%clk 0:02:55.6]} 5. Nf3 {[%clk 0:03:00.5]}
5... d5 {[%clk 0:02:53.8]} 6. g3 {[%clk 0:02:56.7]} 6... Nbd7 {[%clk 0:02:52.8]}
7. Bg2 {[%clk 0:02:56.5]} 7... Bd6 {[%clk 0:02:53.2]} 8. O-O {[%clk 0:02:55.7]}
8... O-O {[%clk 0:02:52.9]} 9. d3 {[%clk 0:02:47.1]} 9... c5 {[%clk 0:02:51.2]}
10. Nbd2 {[%clk 0:02:45.3]} 10... Qe7 {[%clk 0:02:50.3]} 11. Re1 {[%clk
0:02:44.8]} 11... Rad8 {[%clk 0:02:48.3]} 12. Qc2 {[%clk 0:02:42.2]} 12... Bb8
{[%clk 0:02:41]} 13. e4 {[%clk 0:02:33.2]} 13... dxe4 {[%clk 0:02:40.4]} 14.
dxe4 {[%clk 0:02:29.5]} 14... Ng4 {[%clk 0:02:39.2]} 15. e5 {[%clk 0:02:16.4]}
15... f5 {[%clk 0:02:27.1]} 16. exf6 {[%clk 0:02:07.5]} 16... Ndxf6 {[%clk
0:02:24.8]} 17. h3 {[%clk 0:02:00.3]} 17... Nh6 {[%clk 0:02:23.1]} 18. Ng5
{[%clk 0:01:27.8]} 18... Bxg2 {[%clk 0:02:20]} 19. Kxg2 {[%clk 0:01:18.9]} 19...
Qb7+ {[%clk 0:02:14.4]} 20. Ndf3 {[%clk 0:01:15.2]} 20... e5 {[%clk 0:02:04.1]}
21. Bxe5 {[%clk 0:00:57.9]} 21... Bxe5 {[%clk 0:02:02.7]} 22. Rxe5 {[%clk
0:00:58.8]} 22... Nf7 {[%clk 0:02:02.7]} 23. Nxf7 {[%clk 0:00:51.4]} 23... Rxf7
{[%clk 0:02:03.1]} 24. Re3 {[%clk 0:00:32.1]} 24... Rdf8 {[%clk 0:02:02.8]} 25.
Kg1 {[%clk 0:00:29.8]} 25... Ng4 {[%clk 0:01:45.3]} 26. Ng5 {[%clk 0:00:19]}
26... Rf5 {[%clk 0:01:37]} 27. hxg4 {[%clk 0:00:12.8]} 27... Rxg5 {[%clk
0:01:36.6]} 28. Rae1 {[%clk 0:00:11.4]} 28... Rxg4 {[%clk 0:01:33.5]} 29. Re8
{[%clk 0:00:07.3]} 29... Rg6 {[%clk 0:01:21.2]} 30. Qe2 {[%clk 0:00:06.3]} 30...
Rf6 {[%clk 0:01:19.1]} 31. Rxf8+ {[%clk 0:00:06.5]} 31... Rxf8 {[%clk
0:01:17.1]} 32. Qe6+ {[%clk 0:00:05.4]} 32... Kh8 {[%clk 0:01:12]} 33. Qe7
{[%clk 0:00:04.7]} 33... Qf3 {[%clk 0:01:11.3]} 34. Re2 {[%clk 0:00:05.2]} 34...
h5 {[%clk 0:01:07.2]} 35. Qe3 {[%clk 0:00:05.7]} 35... Qf5 {[%clk 0:01:05.9]}
36. Kg2 {[%clk 0:00:05.1]} 36... Rf6 {[%clk 0:01:02.4]} 37. Qe4 {[%clk
0:00:05.4]} 37... Qg5 {[%clk 0:00:58.7]} 38. Qa8+ {[%clk 0:00:05.8]} 38... Kh7
{[%clk 0:00:58.3]} 39. Qe4+ {[%clk 0:00:06.4]} 39... Kh6 {[%clk 0:00:55.9]} 40.
Re3 {[%clk 0:00:06.5]} 40... a5 {[%clk 0:00:51.9]} 41. Rf3 {[%clk 0:00:06.4]}
41... Rxf3 {[%clk 0:00:49.5]} 42. Qxf3 {[%clk 0:00:07.3]} 42... Qe5 {[%clk
0:00:47.9]} 43. Qc6+ {[%clk 0:00:06.6]} 43... Kh7 {[%clk 0:00:44.9]} 44. Qxb6
{[%clk 0:00:06.8]} 44... Qe4+ {[%clk 0:00:45]} 45. Kg1 {[%clk 0:00:07.4]} 45...
Qe1+ {[%clk 0:00:42.5]} 46. Kg2 {[%clk 0:00:07.8]} 46... Qe4+ {[%clk 0:00:41.9]}
47. Kh2 {[%clk 0:00:08.3]} 47... Qd4 {[%clk 0:00:41.2]} 48. Kg2 {[%clk
0:00:08.2]} 48... h4 {[%clk 0:00:39.6]} 49. gxh4 {[%clk 0:00:08]} 49... Qg4+
{[%clk 0:00:38.4]} 50. Kf1 {[%clk 0:00:08.6]} 50... Qd1+ {[%clk 0:00:37.8]} 51.
Kg2 {[%clk 0:00:09]} 51... Qg4+ {[%clk 0:00:37.6]} 52. Kf1 {[%clk 0:00:09.4]}
52... Qd1+ {[%clk 0:00:36.8]} 53. Kg2 {[%clk 0:00:09.8]} 53... Qg4+ {[%clk
0:00:36.5]} 1/2-1/2

[Event "*** Titled Tuesday Blitz"]
[Site "Chess.com"]
[Date "2020.04.28"]
[Round "7"]
[White "erlesfar"]
[Black "GianmarcoVaR"]
[Result "1/2-1/2"]
[WhiteElo "2372"]
[BlackElo "2560"]
[TimeControl "180+1"]
[EndTime "11:18:50 PDT"]
[Termination "Game drawn by repetition"]

1. e4 {[%clk 0:02:56.3]} 1... c5 {[%clk 0:02:57.7]} 2. c3 {[%clk 0:02:54.8]}
2... Nf6 {[%clk 0:02:57]} 3. e5 {[%clk 0:02:52.1]} 3... Nd5 {[%clk 0:02:57]} 4.
d4 {[%clk 0:02:46.1]} 4... cxd4 {[%clk 0:02:50.4]} 5. Nf3 {[%clk 0:02:41.1]}
5... Nc6 {[%clk 0:02:45.6]} 6. Bc4 {[%clk 0:02:38.9]} 6... Nb6 {[%clk
0:02:43.9]} 7. Bb3 {[%clk 0:02:38.6]} 7... g6 {[%clk 0:02:42.2]} 8. Ng5 {[%clk
0:02:30.5]} 8... d5 {[%clk 0:02:34.4]} 9. exd6 {[%clk 0:02:28.7]} 9... e6 {[%clk
0:02:34.7]} 10. Qf3 {[%clk 0:02:27.3]} 10... Ne5 {[%clk 0:02:30.4]} 11. Qg3
{[%clk 0:02:26.2]} 11... Bxd6 {[%clk 0:02:29.6]} 12. Ne4 {[%clk 0:02:23.7]}
12... f5 {[%clk 0:02:07.3]} 13. Nxd6+ {[%clk 0:02:14.3]} 13... Qxd6 {[%clk
0:02:07.2]} 14. cxd4 {[%clk 0:02:08.3]} 14... Nf7 {[%clk 0:01:54.3]} 15. Bf4
{[%clk 0:02:01.1]} 15... Qxd4 {[%clk 0:01:48.1]} 16. O-O {[%clk 0:01:59.2]}
16... O-O {[%clk 0:01:36.6]} 17. Nc3 {[%clk 0:01:53.8]} 17... Bd7 {[%clk
0:01:25.2]} 18. Rad1 {[%clk 0:01:52.5]} 18... Qf6 {[%clk 0:01:25.5]} 19. Rfe1
{[%clk 0:01:47]} 19... Rfe8 {[%clk 0:01:22.9]} 20. h4 {[%clk 0:01:39.6]} 20...
Bc6 {[%clk 0:01:21]} 21. Bg5 {[%clk 0:01:11.9]} 21... Nxg5 {[%clk 0:01:18.8]}
22. hxg5 {[%clk 0:01:11.2]} 22... Qf7 {[%clk 0:01:16.5]} 23. Rd6 {[%clk
0:01:03.3]} 23... Nd5 {[%clk 0:01:13.3]} 24. Nxd5 {[%clk 0:00:55.9]} 24... Bxd5
{[%clk 0:01:11.4]} 25. Qe5 {[%clk 0:00:46]} 25... Rad8 {[%clk 0:00:26.5]} 26.
Rc1 {[%clk 0:00:25.3]} 26... Bxb3 {[%clk 0:00:17.8]} 27. axb3 {[%clk 0:00:24.5]}
27... Rxd6 {[%clk 0:00:10.5]} 28. Qxd6 {[%clk 0:00:24.2]} 28... Qe7 {[%clk
0:00:10.9]} 29. Qd4 {[%clk 0:00:23.3]} 29... e5 {[%clk 0:00:10.2]} 30. Qxa7
{[%clk 0:00:21.9]} 30... Qxg5 {[%clk 0:00:09.4]} 31. Rc7 {[%clk 0:00:19.3]}
31... Re7 {[%clk 0:00:08]} 32. Qxb7 {[%clk 0:00:17.2]} 32... Rxc7 {[%clk
0:00:08.2]} 33. Qxc7 {[%clk 0:00:17.1]} 33... Qc1+ {[%clk 0:00:08.4]} 34. Kh2
{[%clk 0:00:16.1]} 34... Qxb2 {[%clk 0:00:07.9]} 35. Qc4+ {[%clk 0:00:15.9]}
35... Kg7 {[%clk 0:00:05.9]} 36. b4 {[%clk 0:00:15.5]} 36... Qxf2 {[%clk
0:00:03.7]} 37. b5 {[%clk 0:00:13.9]} 37... Qh4+ {[%clk 0:00:02.7]} 38. Kg1
{[%clk 0:00:12.6]} 38... Qe1+ {[%clk 0:00:03.6]} 39. Kh2 {[%clk 0:00:12.5]}
39... e4 {[%clk 0:00:01.2]} 40. b6 {[%clk 0:00:11.3]} 40... Qh4+ {[%clk
0:00:01.4]} 41. Kg1 {[%clk 0:00:10.4]} 41... Qe1+ {[%clk 0:00:02.3]} 42. Kh2
{[%clk 0:00:10.4]} 42... Qh4+ {[%clk 0:00:02.1]} 43. Kg1 {[%clk 0:00:10.1]}
43... Qe1+ {[%clk 0:00:01.6]} 44. Kh2 {[%clk 0:00:10.1]} 1/2-1/2